bitfinex/quotes_BTCUSD_20241103
["timestamp","ask_amount","ask_price","bid_price","bid_amount"]
[1730608643474,0.80544972,68666.0,68651.0,0.21902447]
[1730608643475,0.154649,68658.0,68651.0,0.21902447]
[1730608643688,0.81222135,68666.0,68651.0,0.21902447]
[1730608643689,0.04364405,68666.0,68657.0,0.26563299]
[1730608643900,0.000819,68674.0,68673.0,0.162617]
[1730608644116,0.000819,68674.0,68673.0,0.40866324]
[1730608644313,0.000819,68674.0,68673.0,0.4641658]
[1730608644561,0.000819,68674.0,68673.0,0.54330551]
[1730608644979,0.000819,68674.0,68673.0,0.5000067]
[1730608645188,0.000819,68674.0,68673.0,0.64580374]
[1730608645450,0.000819,68674.0,68673.0,0.69408525]
[1730608645663,0.000819,68674.0,68673.0,0.69608525]
[1730608645836,0.000819,68674.0,68673.0,0.86204171]
[1730608646078,0.000819,68674.0,68673.0,0.70230374]
[1730608646304,0.000819,68674.0,68673.0,0.8620324]
[1730608646516,0.000819,68674.0,68673.0,0.74556126]
[1730608646955,0.000819,68674.0,68673.0,0.69509999]
[1730608647181,0.000819,68674.0,68673.0,0.57744353]
[1730608647384,0.000819,68674.0,68673.0,0.57244353]
[1730608648576,0.000819,68674.0,68673.0,0.57616964]
[1730608650394,0.000819,68674.0,68673.0,0.5761644]
[1730608654159,0.000819,68674.0,68673.0,0.57616226]
[1730608654869,0.000819,68674.0,68673.0,0.52666226]
[1730608655322,0.000819,68674.0,68673.0,0.53554926]
[1730608656887,0.000819,68674.0,68673.0,0.45934926]
[1730608657142,0.000819,68674.0,68673.0,0.43756404]
[1730608657366,0.000819,68674.0,68673.0,0.33956404]
[1730608658699,0.000819,68674.0,68673.0,0.43956404]
[1730608665156,0.000819,68674.0,68673.0,0.44673929]
[1730608668840,0.000819,68674.0,68673.0,0.44674374]
[1730608672242,0.000819,68674.0,68673.0,0.44674717]
[1730608673582,0.000819,68674.0,68673.0,0.45824095]
[1730608675654,0.000819,68674.0,68673.0,0.59664095]
[1730608675870,0.000819,68674.0,68673.0,0.66147455]
[1730608676094,0.000819,68674.0,68673.0,0.75610846]
[1730608676546,0.00888615,68684.0,68682.0,0.40658395]
[1730608676768,0.00888615,68684.0,68682.0,0.57110098]
[1730608677444,0.00888615,68684.0,68682.0,0.55958069]
[1730608678319,0.00888615,68684.0,68682.0,0.57310098]
[1730608678556,0.00888615,68684.0,68682.0,0.55958069]
[1730608678783,0.00888615,68684.0,68682.0,0.56158069]
[1730608679276,0.00888615,68684.0,68682.0,0.56658069]
[1730608680384,0.00888615,68684.0,68682.0,0.44674474]
[1730608681790,0.00888615,68684.0,68682.0,0.45046753]
[1730608683099,0.00888615,68684.0,68682.0,0.44327416]
[1730608683321,0.00888615,68684.0,68682.0,0.45046695]
[1730608685253,0.00888615,68684.0,68682.0,0.44673783]
[1730608685476,0.01444847,68683.0,68682.0,0.44673684]
[1730608685758,0.01444847,68683.0,68682.0,0.45392899]
[1730608689116,0.01444986,68683.0,68682.0,0.45392942]
[1730608689340,0.02808072,68683.0,68682.0,0.45392942]
[1730608689777,0.01444986,68683.0,68682.0,0.51874057]
[1730608690001,0.02808072,68683.0,68682.0,0.51874057]
[1730608691816,0.02808072,68683.0,68682.0,0.45392942]
[1730608692697,0.02808072,68683.0,68682.0,0.49724385]
[1730608693147,0.02808072,68683.0,68682.0,0.49524385]
[1730608693379,0.01445249,68683.0,68682.0,0.44473967]
[1730608693614,0.000819,68683.0,68682.0,0.47785947]
[1730608693843,0.0144533,68683.0,68682.0,0.48505453]
[1730608694968,0.0144533,68683.0,68682.0,0.49005453]
[1730608695415,0.0144533,68683.0,68682.0,0.48505474]
[1730608695635,0.0144533,68683.0,68682.0,0.49005474]
[1730608696117,0.0144533,68683.0,68682.0,0.4467401]
[1730608696342,0.0144533,68683.0,68682.0,0.43954504]
[1730608696566,0.0144533,68683.0,68682.0,0.49005677]
[1730608696797,0.0144533,68683.0,68682.0,0.44674213]
[1730608697043,0.0144533,68683.0,68682.0,0.51171409]
[1730608697267,0.0144533,68683.0,68682.0,0.44674213]
[1730608697715,0.0144533,68683.0,68682.0,0.51171409]
[1730608698405,0.000819,68683.0,68682.0,0.92167462]
[1730608698667,0.000819,68683.0,68682.0,0.83490413]
[1730608699092,0.000819,68683.0,68682.0,0.75632995]
[1730608700083,0.000819,68683.0,68682.0,0.75626307]
[1730608700308,0.000819,68683.0,68682.0,0.83483725]
[1730608700527,0.000819,68683.0,68682.0,0.75626307]
[1730608700979,0.000819,68683.0,68682.0,0.83483725]
[1730608702882,0.000819,68683.0,68682.0,0.81612429]
[1730608703348,0.000819,68683.0,68682.0,0.83483554]
[1730608703604,0.000819,68683.0,68682.0,0.8348346]
[1730608703836,0.000819,68683.0,68682.0,0.8348347]
[1730608704286,0.000819,68683.0,68682.0,0.83483466]
[1730608704709,0.000819,68683.0,68682.0,0.83478194]
[1730608707068,0.000819,68683.0,68682.0,0.81607157]
[1730608707292,0.000819,68683.0,68682.0,0.83478013]
[1730608707774,0.000819,68683.0,68682.0,0.83477887]
[1730608709280,0.000819,68683.0,68682.0,0.83477896]
[1730608709491,0.000819,68683.0,68682.0,0.67502652]
[1730608709692,0.000819,68683.0,68682.0,0.83478317]
[1730608710561,0.000819,68683.0,68682.0,0.81607587]
[1730608710768,0.000819,68683.0,68682.0,0.82326981]
[1730608710984,0.000819,68683.0,68682.0,0.83478087]
[1730608713997,0.000819,68683.0,68682.0,0.81607587]
[1730608714245,0.000819,68683.0,68682.0,0.83480347]
[1730608715936,0.000819,68683.0,68682.0,0.83480302]
[1730608717702,0.000819,68683.0,68682.0,0.8348036]
[1730608719020,1.5e-07,68684.0,68683.0,0.384156]
[1730608719239,1.5e-07,68684.0,68683.0,0.70843742]
[1730608720399,1.5e-07,68684.0,68683.0,0.71343742]
[1730608720953,0.21902447,68691.0,68690.0,0.162581]
[1730608721155,0.21902447,68691.0,68690.0,0.65392668]
[1730608721487,0.21902447,68691.0,68690.0,0.65392551]
[1730608721922,0.36537647,68716.0,68698.0,0.245564]
[1730608722117,0.23265583,68699.0,68698.0,0.40055309]
[1730608723074,0.01363136,68699.0,68698.0,0.40055309]
[1730608723269,0.01363136,68699.0,68698.0,0.40555309]
[1730608724094,0.01363136,68699.0,68698.0,0.40955309]
[1730608724301,0.01363136,68699.0,68698.0,0.43870309]
[1730608724866,0.01363136,68699.0,68698.0,0.44570309]
[1730608725481,0.01363136,68699.0,68698.0,0.44570476]
[1730608726323,0.03545621,68699.0,68698.0,0.44570476]
[1730608726540,0.03545621,68699.0,68698.0,0.44927115]
[1730608728414,0.04637364,68699.0,68698.0,0.44927115]
[1730608729070,0.291071,68712.0,68698.0,0.44927115]
[1730608729071,0.145539,68710.0,68701.0,0.293113]
[1730608729328,0.06294665,68703.0,68702.0,0.145556]
[1730608729516,0.09569829,68703.0,68702.0,0.145556]
[1730608730391,0.09569829,68703.0,68702.0,0.147556]
[1730608731444,0.09569829,68703.0,68702.0,0.149556]
[1730608731705,0.09569829,68703.0,68702.0,0.153556]
[1730608732569,0.09569829,68703.0,68702.0,0.29935304]
[1730608734312,0.09569829,68703.0,68702.0,0.32850304]
[1730608737455,0.09570103,68703.0,68702.0,0.32850304]
[1730608740735,0.0493,68703.0,68702.0,0.32850304]
[1730608740955,0.09570477,68703.0,68702.0,0.32850304]
[1730608741143,0.09570477,68703.0,68702.0,0.32450304]
[1730608741456,0.09570477,68703.0,68702.0,0.32850304]
[1730608741457,0.04640477,68703.0,68702.0,0.32850304]
[1730608741793,0.04640477,68703.0,68702.0,0.32650304]
[1730608742000,0.04640477,68703.0,68702.0,0.32450304]
[1730608743094,0.04722377,68703.0,68702.0,0.32450304]
[1730608743296,0.04722377,68703.0,68702.0,0.32250304]
[1730608743463,0.04722377,68703.0,68702.0,0.32650304]
[1730608743673,0.04723038,68703.0,68702.0,0.33570277]
[1730608747074,0.04723038,68703.0,68702.0,0.34070277]
[1730608747313,0.04723038,68703.0,68702.0,0.34570277]
[1730608747535,0.04723038,68703.0,68702.0,0.48903706]
[1730608747536,0.01173932,68703.0,68702.0,0.48903706]
[1730608747740,0.04723677,68703.0,68702.0,0.48903706]
[1730608748252,0.03631494,68703.0,68702.0,0.44570277]
[1730608748722,0.03631494,68703.0,68702.0,0.48902588]
[1730608748915,0.03631494,68703.0,68702.0,0.44570277]
[1730608749582,0.03631494,68703.0,68702.0,0.48902203]
[1730608750024,0.03631494,68703.0,68702.0,0.56759621]
[1730608750437,0.03631494,68703.0,68702.0,0.5675964]
[1730608750584,0.03631494,68703.0,68702.0,0.52427695]
[1730608751349,0.03631494,68703.0,68702.0,0.56758902]
[1730608752677,0.01447128,68703.0,68702.0,0.56758902]
[1730608754696,0.01447128,68703.0,68702.0,0.52427695]
[1730608755067,0.000819,68703.0,68702.0,0.52427137]
[1730608755265,0.01445944,68703.0,68702.0,0.52427137]
[1730608757923,0.01445944,68703.0,68702.0,0.51827137]
[1730608758173,0.01445944,68703.0,68702.0,0.52227137]
[1730608758381,0.01445944,68703.0,68702.0,0.56556906]
[1730608758594,0.01445944,68703.0,68702.0,0.52227137]
[1730608758762,0.01445609,68703.0,68702.0,0.52226964]
[1730608759218,0.01445609,68703.0,68702.0,0.52226963]
[1730608759432,0.01445609,68703.0,68702.0,0.56556691]
[1730608759896,0.01445609,68703.0,68702.0,0.74902982]
[1730608760104,0.01445609,68703.0,68702.0,0.58921162]
[1730608760319,0.01445609,68703.0,68702.0,0.52426963]
[1730608760539,0.01445609,68703.0,68702.0,0.58921162]
[1730608760970,0.01445609,68703.0,68702.0,0.52426963]
[1730608761608,0.01445609,68703.0,68702.0,0.81337567]
[1730608761829,0.000819,68703.0,68702.0,0.899965]
[1730608762080,0.000819,68703.0,68702.0,0.92161233]
[1730608762503,0.000819,68703.0,68702.0,0.81837567]
[1730608762718,0.000819,68703.0,68702.0,0.81437567]
[1730608762936,0.000819,68703.0,68702.0,0.81237567]
[1730608763161,0.000819,68703.0,68702.0,0.81437262]
[1730608763391,0.000819,68703.0,68702.0,0.81237262]
[1730608763806,0.000819,68703.0,68702.0,0.81437262]
[1730608764209,0.000819,68703.0,68702.0,0.81837262]
[1730608764411,0.21902447,68715.0,68703.0,0.1]
[1730608764630,0.21902447,68715.0,68714.0,0.25525418]
[1730608764900,0.23265054,68715.0,68714.0,0.25525418]
[1730608765256,0.01362607,68715.0,68714.0,0.25525418]
[1730608765664,0.01362607,68715.0,68714.0,0.26325418]
[1730608765875,0.000825,68716.0,68714.0,0.11972418]
[1730608766237,0.000825,68716.0,68715.0,0.32247504]
[1730608766429,0.01444584,68716.0,68715.0,0.32247504]
[1730608767847,0.01444584,68716.0,68715.0,0.32447504]
[1730608768008,0.01444584,68716.0,68715.0,0.42947504]
[1730608768209,0.01444584,68716.0,68715.0,0.43347504]
[1730608769846,0.01444203,68716.0,68715.0,0.43347504]
[1730608770458,0.01444203,68716.0,68715.0,0.43704274]
[1730608771777,0.03622782,68716.0,68715.0,0.43704274]
[1730608772619,0.03218823,68716.0,68715.0,0.43704274]
[1730608773142,0.01040244,68716.0,68715.0,0.43704274]
[1730608773997,0.11329126,68716.0,68715.0,0.03515]
[1730608774193,0.16109126,68716.0,68715.0,0.03515]
[1730608774824,0.16109126,68716.0,68715.0,0.03115]
[1730608775265,0.16109126,68716.0,68715.0,0.03515]
[1730608775697,0.16109126,68716.0,68715.0,0.03315]
[1730608776107,0.16109126,68716.0,68715.0,0.03515]
[1730608778291,0.16191026,68716.0,68715.0,0.03515]
[1730608778508,0.30743626,68716.0,68715.0,0.03515]
[1730608780261,0.275245,68716.0,68715.0,0.03515]
[1730608780470,0.29704923,68716.0,68715.0,0.03515]
[1730608780690,0.29704923,68716.0,68715.0,0.006]
[1730608780691,0.37562341,68716.0,68715.0,0.006]
[1730608781606,0.29704923,68716.0,68715.0,0.002]
[1730608781828,0.145545,68708.0,68702.0,0.145556]
[1730608782053,0.02180423,68707.0,68701.0,0.007]
[1730608782269,0.02180423,68706.0,68702.0,0.145554]
[1730608782533,0.02180423,68705.0,68704.0,0.145551]
[1730608782745,0.02180423,68705.0,68703.0,0.145553]
[1730608782746,0.10290423,68705.0,68703.0,0.145553]
[1730608782961,0.02180423,68704.0,68703.0,0.145554]
[1730608783407,0.0811,68705.0,68704.0,0.002]
[1730608783874,0.10290125,68705.0,68704.0,0.002]
[1730608784606,0.10290125,68705.0,68704.0,0.176691]
[1730608784811,0.11652588,68705.0,68704.0,0.176691]
[1730608785014,0.03542588,68705.0,68704.0,0.32248804]
[1730608785461,0.03542588,68705.0,68704.0,0.32648804]
[1730608785692,0.03542588,68705.0,68704.0,0.32848804]
[1730608786760,0.03542588,68705.0,68704.0,0.32248804]
[1730608786982,0.0811,68709.0,68704.0,0.17493704]
[1730608787205,0.0811,68709.0,68708.0,0.145543]
[1730608787420,0.11651962,68709.0,68708.0,0.145543]
[1730608788693,0.11651962,68709.0,68708.0,0.147543]
[1730608789729,0.11651962,68709.0,68708.0,0.151543]
[1730608790314,0.11651962,68709.0,68708.0,0.153181]
[1730608790542,0.0811,68709.0,68708.0,0.153181]
[1730608790745,0.11651691,68709.0,68708.0,0.153181]
[1730608792053,0.11651691,68709.0,68708.0,0.007638]
[1730608792256,0.11651691,68709.0,68708.0,0.153181]
[1730608793391,0.11651691,68709.0,68708.0,0.007638]
[1730608794712,0.11651691,68709.0,68708.0,0.036778]
[1730608797913,0.11652463,68709.0,68708.0,0.036778]
[1730608800844,0.0811,68709.0,68708.0,0.036778]
[1730608801107,0.11653753,68709.0,68708.0,0.182321]
[1730608801302,0.03543753,68709.0,68708.0,0.182321]
[1730608801880,0.03543753,68709.0,68708.0,0.184321]
[1730608802711,0.03543753,68709.0,68708.0,0.182321]
[1730608803137,0.03543753,68709.0,68708.0,0.036778]
[1730608803876,0.03545482,68709.0,68708.0,0.036778]
[1730608805931,0.18099582,68709.0,68708.0,0.036778]
[1730608806145,0.30889582,68709.0,68708.0,0.036778]
[1730608807466,0.30890828,68709.0,68708.0,0.036778]
[1730608813581,0.30890828,68709.0,68704.0,0.024778]
[1730608813582,0.145549,68705.0,68704.0,0.024778]
[1730608813824,0.18101628,68705.0,68704.0,0.024778]
[1730608814442,0.291096,68706.0,68703.0,0.020416]
[1730608814644,0.145551,68704.0,68703.0,0.020416]
[1730608814846,0.18103705,68704.0,68703.0,0.020416]
[1730608815457,0.19195507,68704.0,68703.0,0.020416]
[1730608815860,0.19195507,68704.0,68703.0,0.022416]
[1730608816357,0.19195507,68704.0,68703.0,0.026416]
[1730608816742,0.28216018,68704.0,68703.0,0.026416]
[1730608817235,0.19195507,68704.0,68703.0,0.026416]
[1730608817654,0.19195507,68704.0,68703.0,0.022416]
[1730608817894,0.04640407,68704.0,68703.0,0.022416]
[1730608818107,0.18103217,68704.0,68703.0,0.03559448]
[1730608818315,0.19194945,68704.0,68703.0,0.026416]
[1730608818712,0.19194945,68704.0,68703.0,0.03359423]
[1730608819566,0.19194945,68704.0,68703.0,0.026416]
[1730608819771,0.04639845,68704.0,68703.0,0.03359407]
[1730608820204,0.04639845,68704.0,68703.0,0.03859407]
[1730608820455,0.04639845,68704.0,68703.0,0.031416]
[1730608820669,0.04639845,68704.0,68703.0,0.03859407]
[1730608820893,0.04639845,68704.0,68703.0,0.031416]
[1730608821113,0.04639845,68704.0,68703.0,0.03859407]
[1730608821341,0.2530432,68704.0,68703.0,0.031416]
[1730608821580,0.2530401,68704.0,68703.0,0.031416]
[1730608821842,0.2175613,68704.0,68703.0,0.025416]
[1730608822061,0.2175613,68704.0,68703.0,0.027416]
[1730608822062,0.25304036,68704.0,68703.0,0.027416]
[1730608822302,0.25304036,68704.0,68703.0,0.031416]
[1730608822737,0.25304036,68704.0,68703.0,0.027416]
[1730608823508,0.25304036,68704.0,68703.0,0.007]
[1730608823943,0.25304036,68704.0,68703.0,0.011]
[1730608824116,0.25304036,68704.0,68703.0,0.009]
[1730608824320,0.20664475,68704.0,68703.0,0.005]
[1730608824515,0.20664475,68704.0,68703.0,0.027416]
[1730608824816,0.20664475,68704.0,68703.0,0.029416]
[1730608825017,0.20664475,68704.0,68703.0,0.011]
[1730608825903,0.20664475,68704.0,68703.0,0.005]
[1730608826308,0.20664475,68704.0,68703.0,0.007]
[1730608826885,0.20664475,68704.0,68703.0,0.008638]
[1730608827086,0.25304129,68704.0,68703.0,0.008638]
[1730608827263,0.25304129,68704.0,68703.0,0.006638]
[1730608827789,0.25304129,68704.0,68703.0,0.010638]
[1730608828256,0.25304129,68704.0,68703.0,0.008638]
[1730608828615,0.25304129,68704.0,68703.0,0.012638]
[1730608828817,0.25304168,68704.0,68703.0,0.012638]
[1730608830988,0.21756167,68704.0,68703.0,0.012638]
[1730608831189,0.25304258,68704.0,68703.0,0.012638]
[1730608832411,0.33161676,68704.0,68703.0,0.007638]
[1730608832617,0.46041676,68704.0,68703.0,0.007638]
[1730608832822,0.44950899,68704.0,68703.0,0.007638]
[1730608833709,0.44950899,68704.0,68703.0,0.003638]
[1730608833937,0.46042185,68704.0,68703.0,0.003638]
[1730608834142,0.46042185,68704.0,68703.0,0.001638]
[1730608834292,0.46242185,68704.0,68703.0,0.001638]
[1730608834713,0.46042185,68704.0,68703.0,0.001638]
[1730608834918,0.46342185,68704.0,68703.0,0.001638]
[1730608836353,0.60921889,68704.0,68703.0,0.001638]
[1730608837011,0.57371937,68704.0,68703.0,0.001638]
[1730608837207,0.60915545,68704.0,68703.0,0.001638]
[1730608845495,0.60911122,68704.0,68703.0,0.001638]
[1730608847801,0.60911195,68704.0,68703.0,0.001638]
[1730608848879,0.60910106,68704.0,68703.0,0.001638]
[1730608850117,0.68767524,68704.0,68703.0,0.001638]
[1730608851603,0.64139015,68704.0,68703.0,0.001638]
[1730608851850,0.68768839,68704.0,68703.0,0.001638]
[1730608854396,0.68768839,68704.0,68687.0,0.001638]
[1730608854397,0.35465918,68688.0,68687.0,0.001638]
[1730608854616,0.36555288,68688.0,68687.0,0.001638]
[1730608854826,0.40095742,68688.0,68687.0,0.001638]
[1730608856385,0.40595742,68688.0,68687.0,0.001638]
[1730608857062,0.40795742,68688.0,68687.0,0.001638]
[1730608857268,0.53610156,68688.0,68687.0,0.001638]
[1730608858632,0.76047278,68688.0,68687.0,0.001638]
[1730608859051,0.73596195,68688.0,68687.0,0.001638]
[1730608859255,0.7495853,68688.0,68687.0,0.001638]
[1730608859466,0.7445853,68688.0,68687.0,0.001638]
[1730608859699,0.7425853,68688.0,68687.0,0.001638]
[1730608859907,0.7475853,68688.0,68687.0,0.002638]
[1730608861022,1.2521353,68688.0,68687.0,0.001638]
[1730608861256,0.276113,68675.0,68674.0,0.001638]
[1730608861475,0.145632,68666.0,68665.0,0.001638]
[1730608861677,0.276132,68666.0,68665.0,0.001638]
[1730608861887,0.18104276,68666.0,68665.0,0.001638]
[1730608862088,0.40006723,68666.0,68665.0,0.001638]
[1730608862299,0.3377318,68666.0,68665.0,0.001638]
[1730608862508,0.48355754,68666.0,68665.0,0.001638]
[1730608862714,0.48355754,68666.0,68665.0,0.004638]
[1730608862905,0.48355754,68666.0,68665.0,0.001638]
[1730608863358,0.49755754,68666.0,68665.0,0.002638]
[1730608863653,0.50555754,68666.0,68665.0,0.003638]
[1730608863783,0.63605754,68666.0,68665.0,0.003638]
[1730608863989,0.145664,68651.0,68650.0,0.17330047]
[1730608864219,0.145668,68649.0,68648.0,0.1289]
[1730608864423,0.145668,68649.0,68648.0,0.1239]
[1730608864424,0.15928752,68649.0,68648.0,0.1239]
[1730608864854,0.2378617,68649.0,68648.0,0.02914]
[1730608865015,0.0921937,68649.0,68644.0,0.0796]
[1730608865223,0.0145664,68651.0,68644.0,0.0796]
[1730608865224,0.145677,68645.0,68644.0,0.0796]
[1730608865424,0.145679,68644.0,68643.0,0.02914]
[1730608865622,0.18100412,68644.0,68643.0,0.02914]
[1730608865824,0.18100412,68644.0,68639.0,0.081248]
[1730608865825,0.145687,68640.0,68639.0,0.081248]
[1730608866027,0.15927942,68640.0,68639.0,0.081248]
[1730608867458,0.16027942,68640.0,68639.0,0.001648]
[1730608867692,0.27168619,68640.0,68639.0,0.001648]
[1730608867913,0.35026037,68640.0,68639.0,0.001648]
[1730608868133,0.145697,68636.0,68632.0,0.005]
[1730608868371,0.2914,68634.0,68631.0,0.0796]
[1730608868597,0.145704,68632.0,68631.0,0.0796]
[1730608868797,0.15929642,68632.0,68631.0,0.0796]
[1730608869026,0.15929642,68632.0,68622.0,0.291448]
[1730608869027,0.145717,68626.0,68623.0,0.105]
[1730608869245,0.145715,68627.0,68625.0,0.0796]
[1730608869691,0.145711,68629.0,68625.0,0.0796]
[1730608869895,0.08640182,68628.0,68625.0,0.0796]
[1730608870102,0.01354832,68627.0,68625.0,0.0796]
[1730608870510,0.145717,68626.0,68625.0,0.0796]
[1730608871233,0.145717,68626.0,68625.0,0.0856]
[1730608871455,0.09485855,68626.0,68625.0,0.0856]
[1730608871863,0.09485855,68626.0,68625.0,0.0896]
[1730608872322,0.09485855,68626.0,68625.0,0.0966]
[1730608872529,0.21902447,68630.0,68625.0,0.0836]
[1730608872747,0.15923836,68629.0,68625.0,0.0836]
[1730608872917,0.01352836,68628.0,68625.0,0.0896]
[1730608873146,0.15924136,68628.0,68625.0,0.0896]
[1730608873327,0.01352463,68627.0,68625.0,0.09124]
[1730608873593,0.08049284,68627.0,68625.0,0.08524]
[1730608873794,0.06696821,68627.0,68625.0,0.09124]
[1730608873951,0.21268421,68627.0,68625.0,0.09124]
[1730608874176,0.145717,68626.0,68625.0,0.01164]
[1730608874377,0.1592423,68626.0,68625.0,0.00564]
[1730608874584,0.2796109,68626.0,68625.0,0.00764]
[1730608874807,0.2796109,68626.0,68625.0,0.00164]
[1730608874949,0.2796109,68626.0,68625.0,0.00564]
[1730608875153,0.0135253,68626.0,68625.0,0.230959]
[1730608875376,0.0135253,68626.0,68625.0,0.08124]
[1730608875551,0.0135253,68626.0,68625.0,0.08524]
[1730608875789,0.0135253,68626.0,68625.0,0.09124]
[1730608876299,0.0135253,68626.0,68625.0,0.08524]
[1730608876300,0.1592423,68626.0,68625.0,0.08524]
[1730608876506,0.19200022,68626.0,68625.0,0.01164]
[1730608876721,0.19300022,68626.0,68625.0,0.01164]
[1730608877084,0.21462911,68626.0,68625.0,0.01164]
[1730608878749,0.26312911,68626.0,68625.0,0.01164]
[1730608879816,0.21462911,68626.0,68625.0,0.01164]
[1730608880236,0.03615419,68626.0,68625.0,0.01164]
[1730608881525,0.18187119,68626.0,68625.0,0.01164]
[1730608882868,0.146717,68626.0,68625.0,0.01164]
[1730608883047,0.18190927,68626.0,68625.0,0.01164]
[1730608883249,0.146717,68626.0,68625.0,0.01164]
[1730608883453,0.2846438,68626.0,68625.0,0.01164]
[1730608884081,0.30721453,68626.0,68625.0,0.01164]
[1730608884281,0.2846438,68626.0,68625.0,0.01164]
[1730608886575,0.28471973,68626.0,68625.0,0.01164]
[1730608886995,0.28471952,68626.0,68625.0,0.21164]
[1730608887443,0.7857006,68626.0,68625.0,0.15425065]
[1730608887619,1.07622613,68626.0,68625.0,0.12142912]
[1730608887969,1.07522613,68626.0,68625.0,0.12142912]
[1730608888384,1.07522613,68626.0,68625.0,0.12642912]
[1730608888824,1.07522613,68626.0,68625.0,0.12242912]
[1730608888825,1.08922613,68626.0,68625.0,0.12242912]
[1730608889070,1.07522613,68626.0,68625.0,0.12142912]
[1730608889273,1.08322613,68626.0,68625.0,0.12242912]
[1730608889446,1.09722613,68626.0,68625.0,0.12342912]
[1730608889644,1.2172786,68626.0,68625.0,0.12342912]
[1730608890057,1.18199255,68626.0,68625.0,0.12342912]
[1730608890260,1.21736657,68626.0,68625.0,0.12342912]
[1730608893284,1.09229705,68626.0,68625.0,0.12342912]
[1730608893492,0.98958058,68626.0,68625.0,0.12342912]
[1730608893722,0.98958712,68626.0,68625.0,0.12342912]
[1730608893927,0.98960829,68626.0,68625.0,0.12342912]
[1730608894137,0.98960826,68626.0,68625.0,0.12342912]
[1730608897093,0.98960826,68626.0,68625.0,0.12506912]
[1730608897295,1.135434,68626.0,68625.0,0.12506912]
[1730608897512,1.135434,68626.0,68625.0,0.07948136]
[1730608900798,1.08917273,68626.0,68625.0,0.07948136]
[1730608900999,1.13548219,68626.0,68625.0,0.07948136]
[1730608901303,0.86438515,68626.0,68625.0,0.07948136]
[1730608901708,0.71855941,68626.0,68625.0,0.07948136]
[1730608903326,0.71055941,68626.0,68625.0,0.07848136]
[1730608903529,0.71055941,68626.0,68625.0,0.07948136]
[1730608903731,0.72455941,68626.0,68625.0,0.07948136]
[1730608904019,1.04770254,68626.0,68625.0,0.07848136]
[1730608904441,1.06170254,68626.0,68625.0,0.04566058]
[1730608904682,1.06171774,68626.0,68625.0,0.04566058]
[1730608904887,1.026293,68626.0,68625.0,0.04566058]
[1730608905073,1.0617182,68626.0,68625.0,0.04566058]
[1730608905267,1.1384182,68626.0,68625.0,0.04566058]
[1730608908515,1.13842112,68626.0,68625.0,0.04566058]
[1730608909398,1.13924112,68626.0,68625.0,0.04566058]
[1730608910010,1.06254112,68626.0,68625.0,0.04566058]
[1730608912099,0.91979503,68626.0,68625.0,0.04566058]
[1730608912310,0.87119503,68626.0,68625.0,0.04566058]
[1730608912648,0.72539799,68626.0,68625.0,0.04566058]
[1730608915776,0.67906995,68626.0,68625.0,0.04566058]
[1730608915992,0.72547461,68626.0,68625.0,0.04566058]
[1730608916195,0.82489569,68626.0,68625.0,0.04566058]
[1730608916397,0.87130035,68626.0,68625.0,0.04566058]
[1730608918089,0.72547461,68626.0,68625.0,0.04566058]
[1730608919427,0.67906995,68626.0,68625.0,0.04566058]
[1730608919781,0.72551314,68626.0,68625.0,0.04566058]
[1730608922280,0.76899984,68626.0,68625.0,0.04566058]
[1730608924643,0.72551314,68626.0,68625.0,0.04566058]
[1730608924881,0.87133888,68626.0,68625.0,0.04566058]
[1730608925468,0.91500513,68626.0,68625.0,0.04566058]
[1730608925691,0.73366581,68626.0,68625.0,0.04566058]
[1730608926053,0.7582624,68626.0,68625.0,0.04566058]
[1730608926271,0.76919292,68626.0,68625.0,0.04566058]
[1730608926928,0.72552487,68626.0,68625.0,0.04566058]
[1730608927131,0.76919678,68626.0,68625.0,0.04566058]
[1730608927538,0.7582662,68626.0,68625.0,0.04566058]
[1730608928859,0.71459429,68626.0,68625.0,0.12816058]
[1730608929126,0.71459429,68626.0,68625.0,0.12616058]
[1730608929331,0.75128967,68626.0,68625.0,0.12616058]
[1730608929533,0.71576533,68626.0,68625.0,0.12616058]
[1730608929748,0.73728094,68626.0,68625.0,0.12516058]
[1730608929961,0.72328094,68626.0,68625.0,0.12516058]
[1730608930375,0.72528094,68626.0,68625.0,0.12516058]
[1730608930497,0.72528094,68626.0,68625.0,0.04466058]
[1730608931712,0.76895285,68626.0,68625.0,0.04466058]
[1730608931861,0.98797732,68626.0,68625.0,0.04466058]
[1730608932061,0.76895285,68626.0,68625.0,0.04466058]
[1730608932478,0.72528094,68626.0,68625.0,0.04466058]
[1730608933243,0.70342239,68626.0,68625.0,0.04466058]
[1730608933445,0.72527368,68626.0,68625.0,0.04466058]
[1730608934260,0.76899062,68626.0,68625.0,0.04466058]
[1730608934723,0.72527368,68626.0,68625.0,0.04466058]
[1730608934933,0.79078155,68626.0,68625.0,0.04466058]
[1730608936246,0.79084708,68626.0,68625.0,0.04466058]
[1730608936911,0.79084618,68626.0,68625.0,0.04466058]
[1730608937365,0.79084619,68626.0,68625.0,0.04466058]
[1730608937812,0.75533873,68626.0,68625.0,0.04466058]
[1730608938025,0.79084728,68626.0,68625.0,0.04466058]
[1730608938483,0.72527388,68626.0,68625.0,0.04466058]
[1730608938943,0.7541519,68626.0,68625.0,0.04466058]
[1730608940058,0.6885785,68626.0,68625.0,0.04466058]
[1730608940506,0.75415425,68626.0,68625.0,0.04466058]
[1730608940735,0.68858085,68626.0,68625.0,0.04466058]
[1730608941170,0.75415304,68626.0,68625.0,0.04466058]
[1730608941388,0.89997878,68626.0,68625.0,0.04466058]
[1730608942103,0.83440659,68626.0,68625.0,0.04466058]
[1730608942608,0.89997878,68626.0,68625.0,0.04466058]
[1730608944391,0.86446788,68626.0,68625.0,0.04466058]
[1730608944603,0.89998331,68626.0,68625.0,0.04466058]
[1730608944820,0.90009021,68626.0,68625.0,0.04466058]
[1730608945640,0.90008973,68626.0,68625.0,0.04466058]
[1730608945764,0.97885308,68626.0,68625.0,0.04466058]
[1730608945972,1.05425308,68626.0,68625.0,0.04466058]
[1730608946186,1.13447841,68626.0,68625.0,0.04466058]
[1730608946421,1.18107841,68626.0,68625.0,0.01183818]
[1730608947019,1.14556298,68626.0,68625.0,0.01183818]
[1730608947378,1.18108535,68626.0,68625.0,0.01183818]
[1730608947793,1.22236165,68626.0,68625.0,0.01183818]
[1730608947989,1.23436165,68626.0,68625.0,0.01283818]
[1730608948479,1.30813247,68626.0,68625.0,0.01283818]
[1730608948616,1.28627255,68626.0,68625.0,0.01283818]
[1730608949489,4.30227255,68626.0,68625.0,0.01283818]
[1730608950315,4.30228477,68626.0,68625.0,0.01283818]
[1730608951675,4.21483928,68626.0,68625.0,0.01283818]